[Event "CIS Master Groups 2024"]
[Site "Vasto"]
[Date "2024.04.09"]
[Round "2.21"]
[White "Eljanov, Pavel"]
[Black "Moroni, Luca Jr"]
[Result "0-1"]
[ECO "D87"]
[WhiteElo "2706"]
[BlackElo "2580"]
[Annotator "TA"]
[PlyCount "117"]
[EventDate "2024.04.07"]
[EventType "team-tourn"]
[EventCountry "ITA"]
[SourceTitle "playchess.com"]
[Source "ChessBase"]
[SourceQuality "1"]
[TimeControl "40/5400+30:900+30"]

{[%evp 31,117,0,0,0,0,0,0,0,0,0,0,0,0,10,3,0,0,-4,-13,-83,-64,-83,-82,-85,-8,-85,0,0,0,0,0,-100,-93,-93,-93,-100,-79,-79,-79,-79,-79,-152,-147,-155,-134,-93,-95,-299,-299,-299,-299,-193,-155,-225,-163,-210,-229,-1204,-1225,-1192,-1204,-1636,-1544,-5157,-4802,-29956,-29952,-29961,-29962,-29961,-29963,-29966,-29967,-29969,-29971,-29971,-29971,-29971,-29970,-29970,-29971,-29971,-29972,-29973,-29973,-29972,-29970,-29964]} 1. d4 {[%emt 0:00:05]} Nf6 {[%emt 0:00:03]} 2. c4 {[%emt 0:00:09]} g6 {[%emt 0:00:04]} 3. Nc3 {[%emt 0:01:57]} d5 {[%emt 0:00:05]} 4. cxd5 {[%emt 0:00:08]} Nxd5 {[%emt 0:00:05]} 5. e4 {[%emt 0:00:11]} Nxc3 {[%emt 0:00:05]} 6. bxc3 {[%emt 0:00:03]} Bg7 {[%emt 0:00:07]} 7. Bc4 {[%emt 0:00:23]} c5 {[%emt 0:00:58]} 8. Ne2 {[%emt 0:00:13]} O-O {[%emt 0:01:22]} 9. O-O {[%emt 0:00:29]} Nc6 {[%emt 0:00:05]} 10. Be3 {[%emt 0:00:12]} b6 {[%emt 0:00:41]} 11. Rc1 {[%emt 0:03:23] D87: Exchange Grünfeld: Classical Line: Variations without ...cxd4.} e6 {[%emt 0:13:58]} 12. Qd2 {[%emt 0:23:55]} Bb7 {[%emt 0:03:11]} 13. Rfd1 {[%emt 0:00:06]} Rc8 {[%emt 0:02:54] 13...cxd4 deserves study.} 14. Bh6 {[%emt 0:02:20]} Bxh6 {[%emt 0:13:52]} 15. Qxh6 {[%emt 0:00:04]} cxd4 {[%emt 0:00:10]} 16. cxd4 {[%emt 0:00:11]} Na5 {[%emt 0:00:57]} 17. Bd3 {[%emt 0:00:31]} Rxc1 {[%emt 0:01:02]} 18. Qxc1 {[%emt 0:06:48]} Nc6 $146 {[%emt 0:13:54]} ({Predecessor:} 18... Qe7 19. h3 Nc6 20. a3 Rc8 21. Qb2 Qf6 22. f3 Na5 23. Rc1 Rxc1+ 24. Qxc1 Nc6 {½-½ Almarza Mato,C (2160)-Farmer,M (1884) BCCA/C3/Tr100 2021}) 19. Bb5 {[%emt 0:04:29]} Na5 {[%emt 0:11:52]} 20. Qf4 {[%emt 0:21:07]} f5 {[%emt 0:10:16]} 21. Qe5 {[%emt 0:01:15]} fxe4 {[%emt 0:01:46]} 22. Qxe6+ {[%emt 0:08:27]} Kg7 $1 {[%emt 0:01:41]} 23. d5 {[%emt 0:06:19]} a6 $1 {[%emt 0:04:28]} 24. Ba4 {[%emt 0:00:35]} Qf6 {[%emt 0:03:27]} 25. Qxe4 {[%emt 0:05:28]} (25. Qxf6+ $11 Kxf6 26. Ng3) 25... b5 {[%emt 0:06:04]} 26. Bb3 {[%emt 0:11:09]} Nxb3 {[%emt 0:03:13]} 27. axb3 {[%emt 0:00:04]} Qxf2+ {[%emt 0:03:41]} 28. Kh1 {[%emt 0:00:03]} Qf7 {[%emt 0:01:02]} (28... Bxd5 $1 $17 29. Qxd5 (29. Qe5+ Kh6 $17) 29... Qxe2 30. Qd4+ Kh6) 29. b4 {[%emt 0:03:54]} Re8 {[%emt 0:02:05]} 30. Qd4+ {[%emt 0:00:34]} Qf6 {[%emt 0:01:23]} 31. Qd3 {[%emt 0:00:51]} (31. d6 $1 $11 Bxg2+ (31... Rxe2 $2 {too greedy.} 32. Qxf6+ Kxf6 33. d7 $18) 32. Kxg2 Rxe2+ 33. Kg3 Qxd4 34. Rxd4) 31... Bxd5 $17 {[%emt 0:00:45]} 32. Qxd5 {[%emt 0:00:04]} Rxe2 {[%emt 0:00:04]} 33. h3 {[%emt 0:00:20]} Re7 {[%emt 0:00:38]} 34. Qc5 {[%emt 0:00:52]} h5 {[%emt 0:00:31]} 35. Kg1 {[%emt 0:00:27]} Qe5 {[%emt 0:00:49]} (35... Re2 {looks sharper.} 36. Rf1 Qe7 37. Qc3+ Kh7) 36. Qxe5+ {[%emt 0:00:51]} (36. Qc2 $142) 36... Rxe5 $17 {[%emt 0:00:01]} 37. Rd6 {[%emt 0:00:10]} Re4 {[%emt 0:00:17]} 38. Rxa6 {[%emt 0:00:07]} Rxb4 {[%emt 0:00:03]} 39. Rb6 $2 {[%emt 0:00:56]} (39. Kf2 $17 {might work better.}) 39... h4 $19 {[%emt 0:01:06]} 40. Kf2 {[%emt 0:00:12]} Rb3 {[%emt 0:00:30]} 41. Ke2 {[%emt 0:06:14]} Kh6 {[%emt 0:02:02]} 42. Kf2 {[%emt 0:00:46]} (42. Rb7 $17 {is a better defense.}) 42... Kg5 $19 {[%emt 0:01:07]} 43. Rd6 {[%emt 0:00:56]} (43. Ra6 $142) 43... Kf5 $19 {[%emt 0:03:54]} 44. Rd5+ $2 {[%emt 0:00:47]} (44. Rd4 g5 45. Rd5+ Kf4 46. Rd4+ Ke5 47. Rg4) 44... Ke4 $19 {[%emt 0:01:54]} 45. Rg5 {[%emt 0:00:08]} Rb2+ $1 {[%emt 0:02:09]} 46. Ke1 {[%emt 0:00:06]} Kd3 {[%emt 0:01:56]} 47. Rxg6 {[%emt 0:02:36] [#]} b4 $1 {[%emt 0:01:02]} 48. Rd6+ {[%emt 0:00:31]} Kc3 {[%emt 0:00:51]} 49. Rc6+ {[%emt 0:00:19]} Kb3 {[%emt 0:01:11]} 50. Rg6 {[%emt 0:00:55]} Rc2 {[%emt 0:00:34]} 51. Kd1 {[%emt 0:01:53]} Kb2 {[%emt 0:01:37]} 52. g3 {[%emt 0:00:03]} hxg3 {[%emt 0:00:45]} 53. Rxg3 {[%emt 0:00:04]} Rc4 {[%emt 0:01:14]} 54. Rg2+ {[%emt 0:04:17]} Ka3 {[%emt 0:00:30]} 55. Rg8 {[%emt 0:01:07]} b3 {[%emt 0:00:45]} 56. Ra8+ {[%emt 0:00:09] [#]} Kb2 $1 {[%emt 0:00:16]} 57. Rh8 {[%emt 0:00:21]} Rd4+ {[%emt 0:01:36]} 58. Ke2 {[%emt 0:00:04]} Ra4 {[%emt 0:00:19]} 59. Kd3 {[%emt 0:04:22]} 0-1

[Event "CIS Master Groups 2024"]
[Site "Vasto"]
[Date "2024.04.09"]
[Round "2.22"]
[White "Pelletier, Yannick"]
[Black "Sonis, Francesco"]
[Result "0-1"]
[ECO "A33"]
[WhiteElo "2524"]
[BlackElo "2562"]
[Annotator "TA"]
[PlyCount "154"]
[EventDate "2024.04.07"]
[EventType "team-tourn"]
[EventCountry "ITA"]
[SourceTitle "playchess.com"]
[Source "ChessBase"]
[SourceQuality "1"]
[TimeControl "40/5400+30:900+30"]

{[%evp 10,154,16,8,7,8,10,3,1,0,0,-5,29,25,32,12,12,-4,49,41,53,43,71,36,38,41,45,48,55,43,38,39,33,36,27,41,28,28,47,16,33,30,46,-12,22,-46,-16,-70,-76,-391,-297,-532,-47,-45,-2,-14,-12,-267,-245,-281,-286,-265,-256,-266,-106,-106,-111,-105,-24,-103,-103,-103,-103,-103,-103,-103,-91,-106,-90,-122,-119,-116,-110,-108,0,-83,0,-83,-83,-132,-108,-144,-144,-144,-144,-144,-144,-144,-144,-144,-144,-144,-144,-208,-200,-200,-200,-177,-177,-29975,-29976,-29976,-9334,-5627,-29972,-29972,-29973,-29973,-29973,-29973,-29971,-29970,-29975,-29974,-29976,-29976,-29976,-29977,-29978,-29978,-29979,-29979,-29980,-29980,-29981,-29981,-29982,-29982,-29983,-29983,-29984,-29984,-29985,-29985,-29986,-29986,-29987]} 1. Nf3 {[%emt 0:00:06]} c5 {[%emt 0:00:55]} 2. c4 {[%emt 0:00:08]} Nc6 {[%emt 0:00:54]} 3. d4 {[%emt 0:00:38]} cxd4 {[%emt 0:00:07]} 4. Nxd4 {[%emt 0:00:05]} Nf6 {[%emt 0:00:20]} 5. Nc3 {[%emt 0:00:49]} e6 {[%emt 0:01:57]} 6. Bg5 {[%emt 0:03:55]} h6 {[%emt 0:04:21]} 7. Bh4 {[%emt 0:01:55]} Be7 {[%emt 0:05:46]} 8. e3 {[%emt 0:00:27]} O-O {[%emt 0:00:15] The position is equal.} 9. Be2 {[%emt 0:03:35]} Qb6 {[%emt 0:02:48]} 10. Nb3 {[%emt 0:24:02]} a5 {[%emt 0:10:18]} 11. Na4 {[%emt 0:02:59]} Qd8 {[%emt 0:10:28]} 12. Nd4 {[%emt 0:09:36]} d5 {[%emt 0:05:58]} 13. cxd5 {[%emt 0:01:56]} exd5 {[%emt 0:09:56]} (13... Nxd4 $11 14. Qxd4 Nxd5 15. Bxe7 Qxe7) 14. O-O $14 {[%emt 0:01:11]} Bd7 {[%emt 0:04:09]} 15. Rc1 {[%emt 0:01:38]} Rc8 {[%emt 0:02:15]} 16. Nc5 {[%emt 0:06:17]} Nxd4 {[%emt 0:00:31]} 17. Qxd4 {[%emt 0:01:40]} Bc6 {[%emt 0:00:05]} 18. Rfd1 {[%emt 0:07:49]} Re8 {[%emt 0:02:03]} 19. Nd3 {[%emt 0:09:40]} g5 {[%emt 0:16:04]} 20. Bg3 {[%emt 0:00:13]} Ne4 {[%emt 0:00:04]} 21. Be5 {[%emt 0:06:38] Inhibits Nxg3.} f6 {[%emt 0:00:57]} 22. Bg3 {[%emt 0:00:02]} Qd7 {[%emt 0:00:41] Dodges Bg4} 23. Bh5 {[%emt 0:03:50]} Rf8 {[%emt 0:03:47]} 24. f3 {[%emt 0:00:02]} Nxg3 {[%emt 0:00:14]} 25. hxg3 {[%emt 0:00:02]} Bd6 {[%emt 0:00:22]} 26. g4 {[%emt 0:01:37]} (26. f4 $14) 26... Qe7 {[%emt 0:03:39]} 27. Ne1 {[%emt 0:03:42]} (27. Bg6 $11) 27... Bb8 {[%emt 0:04:37]} 28. Qd3 {[%emt 0:02:25]} (28. Nd3 $11) 28... f5 $15 {[%emt 0:03:42]} 29. Nc2 $2 {[%emt 0:00:19][%mdl 8192]} (29. Rc2 $17 {is a better chance.}) 29... Qe5 {[%emt 0:00:53] ( -> ...Qh2+)} 30. Rf1 $2 {[%emt 0:06:56]} (30. f4 {keeps fighting.} gxf4 (30... Qxb2 31. Nd4 $11) 31. Qd4) 30... Rf6 $2 {[%emt 0:05:04]} (30... Qxb2 31. Nd4 $14 (31. gxf5 Qe5 $17)) (30... Qh2+ $19 31. Kf2 Bg3+ 32. Ke2 Qxg2+ 33. Kd1 Be5) 31. f4 {[%emt 0:01:00]} Qe4 {[%emt 0:01:04]} 32. Qxe4 {[%emt 0:00:19]} fxe4 {[%emt 0:00:03]} 33. fxg5 {[%emt 0:00:12][%mdl 8192]} (33. f5 $11) 33... Rxf1+ $19 {[%emt 0:00:28]} 34. Kxf1 {[%emt 0:01:02]} Bb5+ {[%emt 0:00:12]} (34... hxg5 35. Ke1 $17 (35. Nd4 $2 Bb5+ 36. Nxb5 Rxc1+ 37. Ke2 Rc2+ 38. Kf1 Rxb2 $19)) 35. Ke1 {[%emt 0:00:01]} Be5 {[%emt 0:01:16]} (35... hxg5 36. Kd2 $19) 36. Kd1 {[%emt 0:00:37] [#]} hxg5 {[%emt 0:00:17]} (36... Bxb2 37. Rb1 $11) (36... Rf8 $1 $19 {is more deadly.} 37. Ne1 hxg5 (37... Bxb2 $2 38. Rc5 $19)) 37. Nd4 $17 {[%emt 0:00:33]} Rxc1+ {[%emt 0:01:36]} 38. Kxc1 {[%emt 0:00:03][%mdl 4096] Endgame. KBB-KBN} Bf1 {[%emt 0:00:45]} (38... Bxd4 $17 39. exd4 Bf1) 39. Nf5 {[%emt 0:01:27]} (39. Ne6 $1 $11 {remains equal.}) 39... Kf8 {[%emt 0:00:06]} 40. g3 {[%emt 0:00:15]} a4 {[%emt 0:00:05]} 41. a3 {[%emt 0:03:37]} Bb5 {[%emt 0:00:32]} 42. Kc2 {[%emt 0:01:54]} b6 {[%emt 0:00:03]} 43. Bg6 {[%emt 0:02:31]} Ba6 {[%emt 0:00:55]} 44. Bh5 {[%emt 0:00:17]} Bd3+ {[%emt 0:00:39]} 45. Kc1 {[%emt 0:00:02]} Be2 {[%emt 0:01:07] Black is more active.} 46. Kc2 {[%emt 0:00:06]} Bd3+ {[%emt 0:04:16] This pair of bishops is nice.} 47. Kc1 {[%emt 0:00:05]} Ba6 {[%emt 0:00:03]} 48. Kc2 $1 {[%emt 0:00:08]} Bc8 {[%emt 0:00:12] Black continues to play with concentration.} 49. Bg6 {[%emt 0:00:24]} (49. b4 $142) 49... Be6 {[%emt 0:00:18]} 50. Kc1 {[%emt 0:02:39]} Bxf5 {[%emt 0:00:42]} 51. Bxf5 {[%emt 0:00:06] KB-KB} Ke7 {[%emt 0:00:02] Dodges Bd7} ({Worse is} 51... Bxg3 52. Be6 $11) 52. Kc2 {[%emt 0:01:56]} Bxg3 {[%emt 0:00:10]} 53. Bg6 {[%emt 0:00:21]} b5 {[%emt 0:00:13]} 54. Bh5 {[%emt 0:04:55]} Kd6 {[%emt 0:00:54]} 55. Be8 {[%emt 0:00:04]} Kc5 {[%emt 0:00:03]} 56. Bd7 {[%emt 0:01:12]} (56. Bg6 $17 {was necessary.}) 56... Bf2 $19 {[%emt 0:00:26]} 57. Kd2 {[%emt 0:00:24]} d4 {[%emt 0:00:22]} 58. exd4+ {[%emt 0:01:16]} Bxd4 {[%emt 0:00:06]} 59. b3 {[%emt 0:01:34]} (59. Kc2 $19) 59... axb3 {[%emt 0:00:43]} 60. Be6 {[%emt 0:01:45]} e3+ {[%emt 0:00:14]} (60... b2 $142 61. Ba2 Kd6 62. Kc2 Ke5 63. Kd2 Kf4 64. Ke2 Kxg4 65. Kf1 Kf3 66. Ke1 g4 67. Kd1 g3 68. Kc2 g2 69. Kb3 g1=Q (69... g1=R {gets mated.} 70. Kb4 e3 71. Kxb5 e2 72. Bf7 b1=Q+ 73. Kc6 e1=Q 74. Bh5+ Kf4 75. Bg4 Qe8+ 76. Kd6 Qb6+ 77. Kd5 Qec6#) 70. Kb4 Qa1 (70... b1=B 71. Bxb1 Qxb1+ 72. Ka5 Qc2 73. Kxb5 Qc5+ 74. Ka4 Qc4+ 75. Ka5 Qb3 76. Ka6 Qb6#) 71. Kxb5 Qxa2 72. Kc6 b1=Q (72... b1=R {is a self mate.} 73. Kd7 Qf7+ 74. Kc8 Qe8+ 75. Kc7 Be5#) 73. Kd6 Qf7 74. Kc6 Qb6#) 61. Ke2 {[%emt 0:00:25]} b2 {[%emt 0:00:07]} 62. Ba2 {[%emt 0:00:04] Black mates.} Kd6 {[%emt 0:00:09]} 63. Kf3 {[%emt 0:00:49]} Ke5 {[%emt 0:00:03]} 64. Bb1 {[%emt 0:00:12]} Bc5 {[%emt 0:00:03]} 65. Bg6 {[%emt 0:00:39]} Kd4 {[%emt 0:00:03]} 66. Ke2 {[%emt 0:00:33]} Bxa3 {[%emt 0:00:04]} 67. Bb1 {[%emt 0:00:14]} Bb4 {[%emt 0:00:07]} 68. Kf3 {[%emt 0:00:15]} Bd2 {[%emt 0:00:15]} 69. Ke2 {[%emt 0:00:06]} b4 {[%emt 0:00:20]} 70. Kf3 {[%emt 0:00:46]} b3 {[%emt 0:00:14]} 71. Ke2 {[%emt 0:00:17]} Kd5 {[%emt 0:00:04]} 72. Bh7 {[%emt 0:01:10]} Ke5 {[%emt 0:00:51]} 73. Kf3 {[%emt 0:00:05] [#]} b1=Q $1 {[%emt 0:00:18]} 74. Bxb1 {[%emt 0:00:06]} Kd4 {[%emt 0:00:03]} 75. Ke2 {[%emt 0:00:49]} Kc3 {[%emt 0:00:03]} 76. Bf5 {[%emt 0:00:10]} Kb2 {[%emt 0:00:04]} 77. Be6 {[%emt 0:00:37]} Kc2 {[%emt 0:00:02] Weighted Error Value: White=0.49/Black=0.31.  Loses game:     	White=2     	---        Missed win:     	---       	Black=1      Mistake:       	White=8     	Black=3      Inaccurate:     	White=4     	Black=5      OK:         	White=15    	Black=28     Best:        	White=7     	Black=1      Strong:       	White=1     	---} 0-1

[Event "CIS Master Groups 2024"]
[Site "Vasto"]
[Date "2024.04.09"]
[Round "2.23"]
[White "Paltrinieri, Nicholas"]
[Black "Borgo, Giulio"]
[Result "0-1"]
[ECO "B40"]
[WhiteElo "2355"]
[BlackElo "2309"]
[Annotator "RC"]
[PlyCount "56"]
[EventDate "2024.04.07"]
[EventType "team-tourn"]
[EventCountry "ITA"]
[SourceTitle "playchess.com"]
[Source "ChessBase"]
[SourceQuality "1"]
[TimeControl "40/5400+30:900+30"]

1. e4 {[%emt 0:00:03]} c5 {[%emt 0:03:16]} 2. Nf3 {[%emt 0:00:06]} e6 {[%emt 0:03:50]} 3. c3 {[%emt 0:00:06]} Nf6 {[%emt 0:04:59]} 4. Bd3 {[%emt 0:00:08]} d5 {[%emt 0:04:02]} 5. e5 {[%emt 0:00:05]} Nfd7 {[%emt 0:00:03]} 6. Bc2 {[%emt 0:00:09]} Nc6 {[%emt 0:01:24]} 7. d4 {[%emt 0:00:05]} Be7 {[%emt 0:03:01]} 8. O-O {[%emt 0:00:08]} b5 {[%emt 0:03:42]} 9. a3 {[%emt 0:07:09]} a5 {[%emt 0:09:06]} 10. Re1 {[%emt 0:00:46]} Rb8 {[%emt 0:18:20]} 11. Nbd2 {[%emt 0:17:41]} cxd4 {[%emt 0:03:59]} 12. cxd4 {[%emt 0:00:22]} Qb6 {[%emt 0:00:13]} 13. Nf1 {[%emt 0:00:29]} b4 {[%emt 0:00:51]} 14. Ng3 {[%emt 0:05:34]} Ba6 {[%emt 0:12:34]} 15. h4 {[%emt 0:05:23]} h6 {[%emt 0:05:58]} 16. Nh5 {[%emt 0:01:16]} g6 {[%emt 0:02:03]} 17. Nf4 {[%emt 0:00:45]} g5 {[%emt 0:04:48]} 18. Nh5 {[%emt 0:18:15]} g4 {[%emt 0:04:35]} 19. Nh2 {[%emt 0:00:08]} b3 {[%emt 0:03:20]} 20. Bxb3 {[%emt 0:07:16]} Qxb3 {[%emt 0:05:57]} 21. Qxg4 {[%emt 0:00:05]} Qd3 {[%emt 0:00:44]} 22. Qg7 {[%emt 0:12:27]} Qh7 {[%emt 0:00:56]} 23. Ng4 {[%emt 0:06:21]} Qxg7 {[%emt 0:00:31]} 24. Nxg7+ {[%emt 0:00:04]} Kf8 {[%emt 0:00:23]} 25. Bxh6 {[%emt 0:00:59]} Rxh6 {[%emt 0:00:31]} 26. Nxh6 {[%emt 0:00:04]} Kxg7 {[%emt 0:00:07]} 27. Ng4 {[%emt 0:00:02]} Nxd4 {[%emt 0:00:28]} 28. Rab1 {[%emt 0:04:36]} Be2 {[%emt 0:00:31]} 0-1

[Event "CIS Master Groups 2024"]
[Site "Vasto"]
[Date "2024.04.09"]
[Round "2.24"]
[White "Podetti, Davide"]
[Black "Di Paolo, Raffaele"]
[Result "1/2-1/2"]
[ECO "C17"]
[WhiteElo "2280"]
[BlackElo "2290"]
[Annotator "RC"]
[PlyCount "112"]
[EventDate "2024.04.07"]
[EventType "team-tourn"]
[EventCountry "ITA"]
[SourceTitle "playchess.com"]
[Source "ChessBase"]
[SourceQuality "1"]
[TimeControl "40/5400+30:900+30"]

1. e4 {[%emt 0:00:32]} e6 {[%emt 0:00:13]} 2. d4 {[%emt 0:00:23]} d5 {[%emt 0:00:06]} 3. Nc3 {[%emt 0:00:35]} Bb4 {[%emt 0:00:13]} 4. e5 {[%emt 0:00:30]} c5 {[%emt 0:00:35]} 5. Bd2 {[%emt 0:01:39]} Ne7 {[%emt 0:02:10]} 6. Nb5 {[%emt 0:01:26]} Bxd2+ {[%emt 0:00:08]} 7. Qxd2 {[%emt 0:00:06]} O-O {[%emt 0:01:34]} 8. f4 {[%emt 0:02:04]} Qb6 {[%emt 0:09:57]} 9. dxc5 {[%emt 0:10:16]} Qxc5 {[%emt 0:03:55]} 10. Nf3 {[%emt 0:03:01]} Bd7 {[%emt 0:04:47]} 11. Nc3 {[%emt 0:14:40]} Nbc6 {[%emt 0:08:27]} 12. Bd3 {[%emt 0:02:54]} Nb4 {[%emt 0:07:13]} 13. Qf2 {[%emt 0:10:02]} Qxf2+ {[%emt 0:04:18]} 14. Kxf2 {[%emt 0:01:41]} f6 {[%emt 0:02:02]} 15. exf6 {[%emt 0:08:26]} gxf6 {[%emt 0:05:44]} 16. Rhe1 {[%emt 0:01:25]} Nec6 {[%emt 0:03:18]} 17. Kg1 {[%emt 0:01:04]} Rac8 {[%emt 0:05:05]} 18. a3 {[%emt 0:03:03]} Nxd3 {[%emt 0:00:06]} 19. cxd3 {[%emt 0:00:03]} Ne7 {[%emt 0:09:08]} 20. Nd4 {[%emt 0:04:11]} Kf7 {[%emt 0:00:12]} 21. Re2 {[%emt 0:01:25]} Rce8 {[%emt 0:01:18]} 22. Rae1 {[%emt 0:02:00]} Nc8 {[%emt 0:00:30]} 23. Ndb5 {[%emt 0:05:53]} a6 {[%emt 0:05:46]} 24. Nc7 {[%emt 0:02:58]} Re7 {[%emt 0:00:58]} 25. f5 {[%emt 0:01:24]} exf5 {[%emt 0:00:16]} 26. N7xd5 {[%emt 0:01:05]} Rxe2 {[%emt 0:00:29]} 27. Rxe2 {[%emt 0:00:29]} Rd8 {[%emt 0:00:55]} 28. Nf4 {[%emt 0:04:03]} Bc6 {[%emt 0:00:33]} 29. Kf2 {[%emt 0:00:54]} Ne7 {[%emt 0:00:38]} 30. Re3 {[%emt 0:01:26]} Ng6 {[%emt 0:00:39]} 31. Nce2 {[%emt 0:00:31]} Ne5 {[%emt 0:00:50]} 32. Rh3 {[%emt 0:00:57]} h6 {[%emt 0:03:50]} 33. Ke1 {[%emt 0:00:50]} Ng4 {[%emt 0:00:14]} 34. Rh5 {[%emt 0:03:56]} Bb5 {[%emt 0:04:11]} 35. h3 {[%emt 0:02:53]} Ne5 {[%emt 0:01:05]} 36. Rxh6 {[%emt 0:01:17]} Nxd3+ {[%emt 0:03:12]} 37. Nxd3 {[%emt 0:00:34]} Kg7 {[%emt 0:03:00]} 38. Rh4 {[%emt 0:01:55]} Rxd3 {[%emt 0:02:42]} 39. Nd4 {[%emt 0:00:35]} Re3+ {[%emt 0:02:12]} 40. Kf2 {[%emt 0:03:02]} Re5 {[%emt 0:00:04]} 41. Nxb5 {[%emt 0:15:19]} axb5 {[%emt 0:15:12]} 42. Rd4 {[%emt 0:00:14]} Kg6 {[%emt 0:04:12]} 43. Rd7 {[%emt 0:00:00]} Rc5 {[%emt 0:00:00]} 44. b4 {[%emt 0:00:00]} Rc2+ {[%emt 0:00:00]} 45. Kg1 {[%emt 0:00:00]} Rc1+ {[%emt 0:01:03]} 46. Kh2 {[%emt 0:00:00]} Rc3 {[%emt 0:00:21]} 47. Rxb7 {[%emt 0:00:00]} Rxa3 {[%emt 0:00:04]} 48. Rxb5 {[%emt 0:00:00]} f4 {[%emt 0:00:23]} 49. Kg1 {[%emt 0:00:00]} Ra2 {[%emt 0:00:30]} 50. Kf1 {[%emt 0:00:00]} Rb2 {[%emt 0:00:11]} 51. Rb8 {[%emt 0:00:00]} Kf5 {[%emt 0:01:18]} 52. b5 {[%emt 0:00:00]} Rb1+ {[%emt 0:01:18]} 53. Kf2 {[%emt 0:00:00]} Rb2+ {[%emt 0:00:07]} 54. Kf3 {[%emt 0:02:39]} Rb3+ {[%emt 0:00:06]} 55. Kf2 {[%emt 0:00:14]} Rb2+ {[%emt 0:00:07]} 56. Kf3 {[%emt 0:00:28]} Rb3+ {[%emt 0:00:07]} 1/2-1/2

[Event "CIS Master Groups 2024"]
[Site "Vasto"]
[Date "2024.04.09"]
[Round "3.1"]
[White "Livaic, Leon"]
[Black "Predke, Alexandr"]
[Result "1/2-1/2"]
[ECO "D21"]
[WhiteElo "2549"]
[BlackElo "2673"]
[Annotator "TA"]
[PlyCount "42"]
[EventDate "2024.04.07"]
[EventType "team-tourn"]
[EventCountry "ITA"]
[SourceTitle "playchess.com"]
[Source "ChessBase"]
[SourceQuality "1"]
[TimeControl "40/5400+30:900+30"]

{[%evp 9,42,17,25,23,41,47,40,23,41,20,31,19,25,0,0,0,0,0,0,0,0,0,0,0,0,-11,0,0,0,0,0,0,0,0,0]} 1. d4 {[%emt 0:00:05]} d5 {[%emt 0:01:36]} 2. c4 {[%emt 0:00:06]} dxc4 {[%emt 0:00:08]} 3. e3 {[%emt 0:00:20][%cal Be2e3,Be3d4,Bd4d5][%mdl 32]} c5 {[%emt 0:00:05]} 4. Bxc4 {[%emt 0:01:01]} cxd4 {[%emt 0:00:05]} 5. Nf3 {[%emt 0:02:50]} Qc7 {[%emt 0:00:13]} 6. Bb3 {[%emt 0:00:54]} g6 {[%emt 0:00:18]} 7. exd4 {[%emt 0:01:45]} Bg7 {[%emt 0:00:43] Dodges Ne5} 8. Nc3 {[%emt 0:00:45] Nd5 is the strong threat. White is slightly better.} Nf6 {[%emt 0:00:52]} 9. O-O {[%emt 0:01:10]} O-O {[%emt 0:00:12]} 10. Re1 {[%emt 0:06:25]} Nc6 {[%emt 0:01:17]} 11. Bg5 {[%emt 0:07:15]} Bg4 {[%emt 0:08:44] The position is equal.} 12. d5 {[%emt 0:04:27]} Rad8 {[%emt 0:18:27][%cal Ba8d8,Bd8d7,Bd7d5][%mdl 32]} 13. h3 {[%emt 0:01:16]} Bxf3 {[%emt 0:00:07]} 14. Qxf3 {[%emt 0:00:04]} Nd4 {[%emt 0:00:07]} 15. Qd1 {[%emt 0:04:09]} Nxb3 {[%emt 0:00:46]} 16. Qxb3 {[%emt 0:00:27]} Rd7 {[%emt 0:01:07]} 17. Re2 {[%emt 0:04:55]} Qa5 {[%emt 0:06:12]} 18. Rae1 {[%emt 0:04:13]} Nxd5 {[%emt 0:00:58]} 19. Nxd5 {[%emt 0:00:05]} Qxd5 {[%emt 0:00:40]} 20. Qxd5 {[%emt 0:00:18]} Rxd5 {[%emt 0:00:05]} 21. Bxe7 {[%emt 0:00:05]} Rc8 {[%emt 0:06:14] Weighted Error Value: White=0.06 (flawless) /Black=0.02 (flawless) .  OK:         	White=6     	Black=11} 1/2-1/2